[Event "Titled Tuesday Blitz July 18 Early 2023"]
[White "Preotu, Razvan"]
[Black "Sargsyan, Anna M."]
[WhiteFideId "2613280"]
[BlackFideId "13308130"]
[WhiteElo "2723"]
[BlackElo "2584"]
[Result "1-0"]
[Round "11"]
[TimeControl "180+2"]
[Date "2023.07.18"]
[WhiteClock "0:00:04"]
[BlackClock "0:00:01"]
[Board "43"]

1. e4 {[%clk 0:03:00]}  e5 {[%clk 0:02:58]} 2. Nf3 {[%clk 0:02:55]}  Nc6 {[%clk 0:02:59]} 3. Bc4 {[%clk 0:02:56]}  Bc5 {[%clk 0:02:58]} 4. c3 {[%clk 0:02:56]}  Nf6 {[%clk 0:02:57]} 5. d3 {[%clk 0:02:56]}  d6 {[%clk 0:02:58]} 6. O-O {[%clk 0:02:56]}  O-O {[%clk 0:02:57]} 7. Re1 {[%clk 0:02:57]}  h6 {[%clk 0:02:56]} 8. b4 {[%clk 0:02:56]}  Bb6 {[%clk 0:02:56]} 9. Nbd2 {[%clk 0:02:56]}  a5 {[%clk 0:02:56]} 10. b5 {[%clk 0:02:56]}  Ne7 {[%clk 0:02:57]} 11. d4 {[%clk 0:02:55]}  Ng6 {[%clk 0:02:53]} 12. Bf1 {[%clk 0:02:45]}  Re8 {[%clk 0:02:52]} 13. Nc4 {[%clk 0:02:18]}  Bg4 {[%clk 0:02:24]} 14. h3 {[%clk 0:02:07]}  Bh5 {[%clk 0:02:05]} 15. Nxb6 {[%clk 0:01:29]}  cxb6 {[%clk 0:02:06]} 16. g4 {[%clk 0:01:26]}  Nxg4 {[%clk 0:02:06]} 17. hxg4 {[%clk 0:01:27]}  Bxg4 {[%clk 0:02:06]} 18. Qd3 {[%clk 0:01:21]}  Qf6 {[%clk 0:02:02]} 19. Nh2 {[%clk 0:01:17]}  Bd7 {[%clk 0:01:55]} 20. Qf3 {[%clk 0:01:02]}  Qe7 {[%clk 0:01:50]} 21. Ba3 {[%clk 0:00:52]}  Rac8 {[%clk 0:01:49]} 22. Rad1 {[%clk 0:00:51]}  exd4 {[%clk 0:01:48]} 23. cxd4 {[%clk 0:00:50]}  Rc2 {[%clk 0:01:43]} 24. e5 {[%clk 0:00:40]}  Nh4 {[%clk 0:01:42]} 25. Qg3 {[%clk 0:00:34]}  Nf5 {[%clk 0:01:43]} 26. Qb3 {[%clk 0:00:26]}  Qg5+ {[%clk 0:01:39]} 27. Bg2 {[%clk 0:00:20]}  Rec8 {[%clk 0:01:37]} 28. exd6 {[%clk 0:00:16]}  R8c3 {[%clk 0:01:29]} 29. Qd5 {[%clk 0:00:15]}  Qh4 {[%clk 0:01:20]} 30. Rf1 {[%clk 0:00:10]}  Rxa3 {[%clk 0:01:17]} 31. Qxb7 {[%clk 0:00:11]}  Qd8 {[%clk 0:01:09]} 32. Qe4 {[%clk 0:00:06]}  Raxa2 {[%clk 0:01:09]} 33. Qe5 {[%clk 0:00:04]}  Nh4 {[%clk 0:01:05]} 34. Be4 {[%clk 0:00:04]}  Re2 {[%clk 0:01:04]} 35. Rde1 {[%clk 0:00:04]}  Qg5+ {[%clk 0:00:47]} 36. Qxg5 {[%clk 0:00:04]}  hxg5 {[%clk 0:00:48]} 37. Rxe2 {[%clk 0:00:03]}  Rxe2 {[%clk 0:00:49]} 38. Bc6 {[%clk 0:00:04]}  Bh3 {[%clk 0:00:38]} 39. d7 {[%clk 0:00:04]}  Bxd7 {[%clk 0:00:39]} 40. Bxd7 {[%clk 0:00:05]}  a4 {[%clk 0:00:39]} 41. Ra1 {[%clk 0:00:04]}  Rd2 {[%clk 0:00:38]} 42. Bc6 {[%clk 0:00:01]}  Rxd4 {[%clk 0:00:35]} 43. Nf3 {[%clk 0:00:02]}  Rg4+ {[%clk 0:00:34]} 44. Kf1 {[%clk 0:00:02]}  Ng6 {[%clk 0:00:33]} 45. Nd2 {[%clk 0:00:02]}  Rd4 {[%clk 0:00:31]} 46. Nf3 {[%clk 0:00:02]}  Rg4 {[%clk 0:00:30]} 47. Bd7 {[%clk 0:00:02]}  Rb4 {[%clk 0:00:27]} 48. Nxg5 {[%clk 0:00:03]}  Nf4 {[%clk 0:00:26]} 49. Bc6 {[%clk 0:00:02]}  f5 {[%clk 0:00:25]} 50. Nf3 {[%clk 0:00:02]}  Kf7 {[%clk 0:00:23]} 51. Ne5+ {[%clk 0:00:03]}  Ke6 {[%clk 0:00:22]} 52. Nd7 {[%clk 0:00:04]}  Nd3 {[%clk 0:00:15]} 53. Nxb6 {[%clk 0:00:03]}  g5 {[%clk 0:00:16]} 54. Rxa4 {[%clk 0:00:02]}  Rb1+ {[%clk 0:00:16]} 55. Ke2 {[%clk 0:00:03]}  Nf4+ {[%clk 0:00:16]} 56. Kd2 {[%clk 0:00:02]}  Rb2+ {[%clk 0:00:17]} 57. Kc1 {[%clk 0:00:03]}  Nd3+ {[%clk 0:00:16]} 58. Kd1 {[%clk 0:00:03]}  Nxf2+ {[%clk 0:00:17]} 59. Ke1 {[%clk 0:00:04]}  Nd3+ {[%clk 0:00:18]} 60. Kf1 {[%clk 0:00:05]}  f4 {[%clk 0:00:18]} 61. Nc4 {[%clk 0:00:05]}  Rf2+ {[%clk 0:00:17]} 62. Kg1 {[%clk 0:00:05]}  Rc2 {[%clk 0:00:17]} 63. b6 {[%clk 0:00:04]}  g4 {[%clk 0:00:12]} 64. b7 {[%clk 0:00:04]}  Rc1+ {[%clk 0:00:11]} 65. Kg2 {[%clk 0:00:05]}  Rc2+ {[%clk 0:00:12]} 66. Kg1 {[%clk 0:00:03]}  Rc1+ {[%clk 0:00:12]} 67. Kg2 {[%clk 0:00:03]}  Rc2+ {[%clk 0:00:13]} 68. Kf1 {[%clk 0:00:04]}  f3 {[%clk 0:00:11]} 69. Ra1 {[%clk 0:00:03]}  g3 {[%clk 0:00:04]} 70. Bxf3 {[%clk 0:00:03]}  Rf2+ {[%clk 0:00:02]} 71. Kg1 {[%clk 0:00:03]}  Rxf3 {[%clk 0:00:01]} 72. b8=Q {[%clk 0:00:04]} 1-0


[Site "https://www.chess.com"]

[Event "Titled Tuesday Blitz July 18 Early 2023"]
[White "Gavrilov, Maxim"]
[Black "Dimitrov, Atanas"]
[WhiteFideId "24271454"]
[BlackFideId "2901315"]
[WhiteElo "2569"]
[BlackElo "2679"]
[Result "1-0"]
[Round "11"]
[TimeControl "180+2"]
[Date "2023.07.18"]
[WhiteClock "0:00:39"]
[BlackClock "0:00:05"]
[Board "45"]

1. d4 {[%clk 0:03:00]}  Nf6 {[%clk 0:03:00]} 2. c4 {[%clk 0:03:00]}  g6 {[%clk 0:03:00]} 3. Nf3 {[%clk 0:03:00]}  Bg7 {[%clk 0:03:00]} 4. g3 {[%clk 0:03:01]}  O-O {[%clk 0:03:00]} 5. Bg2 {[%clk 0:03:02]}  b6 {[%clk 0:03:00]} 6. O-O {[%clk 0:03:01]}  Bb7 {[%clk 0:03:00]} 7. Nc3 {[%clk 0:03:01]}  d5 {[%clk 0:03:00]} 8. cxd5 {[%clk 0:03:01]}  Nxd5 {[%clk 0:03:01]} 9. Qb3 {[%clk 0:02:55]}  Nxc3 {[%clk 0:02:57]} 10. bxc3 {[%clk 0:02:55]}  Nd7 {[%clk 0:02:57]} 11. c4 {[%clk 0:02:52]}  c5 {[%clk 0:02:55]} 12. e3 {[%clk 0:02:50]}  Rc8 {[%clk 0:02:53]} 13. Bb2 {[%clk 0:02:50]}  cxd4 {[%clk 0:02:53]} 14. exd4 {[%clk 0:02:49]}  Qc7 {[%clk 0:02:52]} 15. Rac1 {[%clk 0:02:47]}  Rfd8 {[%clk 0:02:51]} 16. Rfe1 {[%clk 0:02:45]}  e6 {[%clk 0:02:51]} 17. h4 {[%clk 0:02:34]}  h6 {[%clk 0:02:43]} 18. h5 {[%clk 0:02:29]}  g5 {[%clk 0:02:44]} 19. d5 {[%clk 0:02:26]}  Nc5 {[%clk 0:02:42]} 20. Qc2 {[%clk 0:02:19]}  exd5 {[%clk 0:02:29]} 21. Bxg7 {[%clk 0:02:17]}  Kxg7 {[%clk 0:02:30]} 22. Qc3+ {[%clk 0:02:08]}  Kg8 {[%clk 0:02:30]} 23. cxd5 {[%clk 0:02:02]}  Bxd5 {[%clk 0:02:28]} 24. Qf6 {[%clk 0:01:54]}  Rd6 {[%clk 0:02:26]} 25. Qf5 {[%clk 0:01:53]}  Be6 {[%clk 0:02:17]} 26. Qb1 {[%clk 0:01:47]}  Rcd8 {[%clk 0:01:59]} 27. Ne5 {[%clk 0:01:43]}  Bd5 {[%clk 0:01:50]} 28. Bxd5 {[%clk 0:01:26]}  Rxd5 {[%clk 0:01:51]} 29. Ng4 {[%clk 0:01:27]}  R5d6 {[%clk 0:01:32]} 30. Qa1 {[%clk 0:01:21]}  Qc6 {[%clk 0:01:30]} 31. Re7 {[%clk 0:01:10]}  Qf3 {[%clk 0:01:09]} 32. Rce1 {[%clk 0:00:58]}  Nd7 {[%clk 0:00:36]} 33. Rxd7 {[%clk 0:00:47]}  R6xd7 {[%clk 0:00:05]} 34. Nf6+ {[%clk 0:00:46]}  Kh8 {[%clk 0:00:06]} 35. Nxd7+ {[%clk 0:00:40]}  f6 {[%clk 0:00:05]} 36. Nxf6 {[%clk 0:00:39]} 1-0


[Site "https://www.chess.com"]

[Event "Titled Tuesday Blitz July 18 Early 2023"]
[White "Shuvalova, Polina"]
[Black "robertoalejandro10"]
[WhiteFideId "24171760"]
[WhiteElo "2666"]
[BlackElo "2568"]
[Result "1-0"]
[Round "11"]
[TimeControl "180+2"]
[Date "2023.07.18"]
[WhiteClock "0:00:32"]
[BlackClock "0:00:00"]
[Board "46"]

1. e4 {[%clk 0:03:00]}  c5 {[%clk 0:02:58]} 2. Nf3 {[%clk 0:03:00]}  g6 {[%clk 0:02:58]} 3. c3 {[%clk 0:03:00]}  d5 {[%clk 0:02:57]} 4. exd5 {[%clk 0:03:00]}  Qxd5 {[%clk 0:02:58]} 5. d4 {[%clk 0:03:00]}  Bg7 {[%clk 0:02:57]} 6. Na3 {[%clk 0:02:59]}  cxd4 {[%clk 0:02:57]} 7. Nb5 {[%clk 0:02:50]}  Na6 {[%clk 0:02:56]} 8. Nbxd4 {[%clk 0:02:48]}  Nf6 {[%clk 0:02:52]} 9. Be3 {[%clk 0:02:40]}  O-O {[%clk 0:02:50]} 10. Be2 {[%clk 0:02:39]}  Ng4 {[%clk 0:02:43]} 11. Bg5 {[%clk 0:02:31]}  Re8 {[%clk 0:02:11]} 12. h3 {[%clk 0:02:23]}  Nf6 {[%clk 0:02:08]} 13. O-O {[%clk 0:02:04]}  Nc5 {[%clk 0:02:08]} 14. Nb5 {[%clk 0:02:00]}  Qxd1 {[%clk 0:01:36]} 15. Rfxd1 {[%clk 0:01:58]}  Ne6 {[%clk 0:01:23]} 16. Be3 {[%clk 0:01:56]}  a6 {[%clk 0:01:21]} 17. Na3 {[%clk 0:01:52]}  b5 {[%clk 0:01:18]} 18. Nc2 {[%clk 0:01:51]}  Bb7 {[%clk 0:01:18]} 19. a4 {[%clk 0:01:51]}  Nc7 {[%clk 0:00:47]} 20. axb5 {[%clk 0:01:43]}  axb5 {[%clk 0:00:47]} 21. Bc5 {[%clk 0:01:32]}  e6 {[%clk 0:00:43]} 22. Nfd4 {[%clk 0:01:27]}  Ba6 {[%clk 0:00:17]} 23. Nb4 {[%clk 0:01:22]}  Nfd5 {[%clk 0:00:16]} 24. Nxa6 {[%clk 0:01:02]}  Nxa6 {[%clk 0:00:15]} 25. Bd6 {[%clk 0:01:02]}  Bxd4 {[%clk 0:00:09]} 26. Rxd4 {[%clk 0:00:59]}  Red8 {[%clk 0:00:07]} 27. Bg3 {[%clk 0:00:56]}  Nac7 {[%clk 0:00:06]} 28. Rxa8 {[%clk 0:00:36]}  Rxa8 {[%clk 0:00:06]} 29. Bxc7 {[%clk 0:00:37]}  Nxc7 {[%clk 0:00:06]} 30. Rd7 {[%clk 0:00:38]}  Ra7 {[%clk 0:00:00]} 31. Bf3 {[%clk 0:00:32]} 1-0


[Site "https://www.chess.com"]

[Event "Titled Tuesday Blitz July 18 Early 2023"]
[White "Garcia Blanco, Omar"]
[Black "Philippe, Guillaume"]
[WhiteFideId "2287153"]
[BlackFideId "36048763"]
[WhiteElo "2627"]
[BlackElo "2536"]
[Result "1-0"]
[Round "11"]
[TimeControl "180+2"]
[Date "2023.07.18"]
[WhiteClock "0:00:56"]
[BlackClock "0:00:03"]
[Board "49"]

1. e4 {[%clk 0:03:00]}  c5 {[%clk 0:02:58]} 2. Nc3 {[%clk 0:03:01]}  Nc6 {[%clk 0:02:58]} 3. Bb5 {[%clk 0:03:01]}  Nd4 {[%clk 0:02:58]} 4. Nf3 {[%clk 0:03:02]}  Nxb5 {[%clk 0:02:56]} 5. Nxb5 {[%clk 0:03:03]}  d6 {[%clk 0:02:56]} 6. d4 {[%clk 0:03:02]}  cxd4 {[%clk 0:02:55]} 7. Qxd4 {[%clk 0:02:59]}  e5 {[%clk 0:02:48]} 8. Qd3 {[%clk 0:02:59]}  Be6 {[%clk 0:02:42]} 9. O-O {[%clk 0:02:51]}  a6 {[%clk 0:02:29]} 10. Nc3 {[%clk 0:02:50]}  Nf6 {[%clk 0:02:29]} 11. Bg5 {[%clk 0:02:50]}  Be7 {[%clk 0:02:29]} 12. Bxf6 {[%clk 0:02:43]}  Bxf6 {[%clk 0:02:29]} 13. Rfd1 {[%clk 0:02:43]}  Be7 {[%clk 0:02:28]} 14. Nd2 {[%clk 0:02:43]}  b5 {[%clk 0:02:27]} 15. a4 {[%clk 0:02:37]}  b4 {[%clk 0:02:25]} 16. Nd5 {[%clk 0:02:37]}  O-O {[%clk 0:02:18]} 17. Nxb4 {[%clk 0:02:33]}  Qb6 {[%clk 0:01:58]} 18. Nd5 {[%clk 0:02:09]}  Bxd5 {[%clk 0:01:58]} 19. exd5 {[%clk 0:02:10]}  Qxb2 {[%clk 0:01:51]} 20. Nc4 {[%clk 0:02:06]}  Qb4 {[%clk 0:01:39]} 21. Rdb1 {[%clk 0:01:55]}  Qc5 {[%clk 0:01:39]} 22. Nb6 {[%clk 0:01:56]}  Ra7 {[%clk 0:01:09]} 23. a5 {[%clk 0:01:56]}  Bf6 {[%clk 0:01:03]} 24. Ra4 {[%clk 0:01:55]}  e4 {[%clk 0:01:03]} 25. Qxe4 {[%clk 0:01:51]}  Re7 {[%clk 0:00:56]} 26. Qc4 {[%clk 0:01:49]}  Rfe8 {[%clk 0:00:49]} 27. g3 {[%clk 0:01:39]}  Bd4 {[%clk 0:00:10]} 28. Qxd4 {[%clk 0:01:36]}  Qxc2 {[%clk 0:00:11]} 29. Rf1 {[%clk 0:01:31]}  Re4 {[%clk 0:00:10]} 30. Rc4 {[%clk 0:01:24]}  Qe2 {[%clk 0:00:05]} 31. Qc3 {[%clk 0:01:21]}  h6 {[%clk 0:00:05]} 32. Rxe4 {[%clk 0:01:09]}  Rxe4 {[%clk 0:00:06]} 33. Nc8 {[%clk 0:01:08]}  Rc4 {[%clk 0:00:04]} 34. Ne7+ {[%clk 0:01:08]}  Kf8 {[%clk 0:00:04]} 35. Qa1 {[%clk 0:01:03]}  Qxe7 {[%clk 0:00:02]} 36. Re1 {[%clk 0:00:59]}  Qc7 {[%clk 0:00:03]} 37. Qb1 {[%clk 0:00:56]}  Kg8 {[%clk 0:00:03]} 38. Re8# {[%clk 0:00:56]} 1-0


[Site "https://www.chess.com"]

[Event "Titled Tuesday Blitz July 18 Early 2023"]
[White "Mmukka"]
[Black "Mohamed Anees M"]
[BlackFideId "35065815"]
[WhiteElo "2507"]
[BlackElo "2622"]
[Result "1-0"]
[Round "11"]
[TimeControl "180+2"]
[Date "2023.07.18"]
[WhiteClock "0:00:11"]
[BlackClock "0:00:38"]
[Board "51"]

1. e4 {[%clk 0:02:59]}  c5 {[%clk 0:02:59]} 2. Nf3 {[%clk 0:02:59]}  Nc6 {[%clk 0:02:59]} 3. d4 {[%clk 0:02:59]}  cxd4 {[%clk 0:03:00]} 4. Nxd4 {[%clk 0:03:00]}  Nf6 {[%clk 0:03:01]} 5. Nc3 {[%clk 0:03:00]}  d6 {[%clk 0:03:02]} 6. Bg5 {[%clk 0:03:00]}  e6 {[%clk 0:03:02]} 7. Qd2 {[%clk 0:02:58]}  a6 {[%clk 0:03:02]} 8. O-O-O {[%clk 0:02:57]}  Bd7 {[%clk 0:03:03]} 9. f3 {[%clk 0:02:56]}  Nxd4 {[%clk 0:03:03]} 10. Qxd4 {[%clk 0:02:56]}  Be7 {[%clk 0:03:04]} 11. h4 {[%clk 0:02:56]}  Qc7 {[%clk 0:03:03]} 12. Kb1 {[%clk 0:02:49]}  b5 {[%clk 0:03:03]} 13. g4 {[%clk 0:02:23]}  O-O {[%clk 0:02:52]} 14. Be3 {[%clk 0:02:19]}  Rfc8 {[%clk 0:02:52]} 15. Qd2 {[%clk 0:02:11]}  b4 {[%clk 0:02:49]} 16. Ne2 {[%clk 0:02:10]}  a5 {[%clk 0:02:45]} 17. h5 {[%clk 0:02:08]}  a4 {[%clk 0:02:43]} 18. Nc1 {[%clk 0:02:06]}  Rab8 {[%clk 0:02:11]} 19. g5 {[%clk 0:02:00]}  Ne8 {[%clk 0:02:11]} 20. g6 {[%clk 0:01:59]}  Bf6 {[%clk 0:02:11]} 21. gxf7+ {[%clk 0:01:48]}  Kxf7 {[%clk 0:02:12]} 22. Bd3 {[%clk 0:01:45]}  Qa5 {[%clk 0:01:52]} 23. f4 {[%clk 0:01:33]}  Bb5 {[%clk 0:01:29]} 24. e5 {[%clk 0:01:05]}  dxe5 {[%clk 0:01:27]} 25. Bxh7 {[%clk 0:00:57]}  Rd8 {[%clk 0:01:24]} 26. Qg2 {[%clk 0:00:50]}  Bc4 {[%clk 0:01:13]} 27. Bg6+ {[%clk 0:00:30]}  Ke7 {[%clk 0:01:09]} 28. Qc6 {[%clk 0:00:29]}  Bd5 {[%clk 0:01:07]} 29. Bc5+ {[%clk 0:00:21]}  Nd6 {[%clk 0:01:06]} 30. Rxd5 {[%clk 0:00:21]}  exd5 {[%clk 0:01:06]} 31. Qxd5 {[%clk 0:00:21]}  Rd7 {[%clk 0:00:55]} 32. Bxd6+ {[%clk 0:00:20]}  Rxd6 {[%clk 0:00:54]} 33. Qxa5 {[%clk 0:00:20]}  exf4 {[%clk 0:00:54]} 34. Re1+ {[%clk 0:00:20]}  Kf8 {[%clk 0:00:53]} 35. Qc5 {[%clk 0:00:20]}  Rd8 {[%clk 0:00:52]} 36. Rd1 {[%clk 0:00:19]}  Be7 {[%clk 0:00:52]} 37. Qf5+ {[%clk 0:00:19]}  Kg8 {[%clk 0:00:51]} 38. Rxd6 {[%clk 0:00:15]}  Bxd6 {[%clk 0:00:52]} 39. c3 {[%clk 0:00:13]}  bxc3 {[%clk 0:00:51]} 40. bxc3 {[%clk 0:00:14]}  a3 {[%clk 0:00:51]} 41. Kc2 {[%clk 0:00:14]}  Rb8 {[%clk 0:00:51]} 42. Nd3 {[%clk 0:00:14]}  Bf8 {[%clk 0:00:51]} 43. h6 {[%clk 0:00:13]}  f3 {[%clk 0:00:49]} 44. Qxf3 {[%clk 0:00:13]}  Bd6 {[%clk 0:00:46]} 45. Qd5+ {[%clk 0:00:12]}  Kh8 {[%clk 0:00:46]} 46. Qxd6 {[%clk 0:00:13]}  Rg8 {[%clk 0:00:43]} 47. Qe7 {[%clk 0:00:11]}  gxh6 {[%clk 0:00:38]} 48. Qh7# {[%clk 0:00:11]} 1-0


[Site "https://www.chess.com"]

[Event "Titled Tuesday Blitz July 18 Early 2023"]
[White "Onufrienko, Vladislav"]
[Black "Besedes, Danilo"]
[WhiteFideId "13804332"]
[BlackFideId "946796"]
[WhiteElo "2621"]
[BlackElo "2504"]
[Result "0-1"]
[Round "11"]
[TimeControl "180+2"]
[Date "2023.07.18"]
[WhiteClock "0:00:08"]
[BlackClock "0:01:15"]
[Board "52"]

1. e4 {[%clk 0:03:00]}  g6 {[%clk 0:02:59]} 2. d4 {[%clk 0:03:00]}  Bg7 {[%clk 0:03:00]} 3. Nc3 {[%clk 0:03:01]}  c6 {[%clk 0:03:00]} 4. f4 {[%clk 0:03:01]}  d5 {[%clk 0:03:00]} 5. e5 {[%clk 0:03:02]}  h5 {[%clk 0:03:00]} 6. Bd3 {[%clk 0:02:51]}  Nh6 {[%clk 0:03:00]} 7. Nf3 {[%clk 0:02:45]}  Bg4 {[%clk 0:03:00]} 8. h3 {[%clk 0:02:45]}  Bxf3 {[%clk 0:03:00]} 9. Qxf3 {[%clk 0:02:46]}  e6 {[%clk 0:03:00]} 10. Be3 {[%clk 0:02:43]}  Nf5 {[%clk 0:03:00]} 11. Bf2 {[%clk 0:02:38]}  h4 {[%clk 0:03:00]} 12. O-O-O {[%clk 0:02:38]}  Nd7 {[%clk 0:03:00]} 13. Kb1 {[%clk 0:02:35]}  a6 {[%clk 0:02:59]} 14. Ne2 {[%clk 0:02:28]}  Bf8 {[%clk 0:02:58]} 15. c4 {[%clk 0:02:26]}  dxc4 {[%clk 0:02:54]} 16. Bxc4 {[%clk 0:02:27]}  Nb6 {[%clk 0:02:53]} 17. Bd3 {[%clk 0:02:21]}  Nd5 {[%clk 0:02:51]} 18. Be4 {[%clk 0:02:15]}  Qa5 {[%clk 0:02:47]} 19. Rc1 {[%clk 0:02:07]}  O-O-O {[%clk 0:02:45]} 20. Rhd1 {[%clk 0:02:01]}  Kb8 {[%clk 0:02:43]} 21. Nc3 {[%clk 0:02:02]}  Bb4 {[%clk 0:02:39]} 22. Nxd5 {[%clk 0:02:00]}  cxd5 {[%clk 0:02:39]} 23. Bxf5 {[%clk 0:01:40]}  gxf5 {[%clk 0:02:40]} 24. a3 {[%clk 0:01:40]}  Be7 {[%clk 0:02:38]} 25. Qb3 {[%clk 0:01:37]}  Rhg8 {[%clk 0:02:35]} 26. Be1 {[%clk 0:01:36]}  Qb5 {[%clk 0:02:30]} 27. Qf3 {[%clk 0:01:05]}  Rg6 {[%clk 0:02:17]} 28. Rd3 {[%clk 0:00:58]}  Rdg8 {[%clk 0:02:11]} 29. Rb3 {[%clk 0:00:57]}  Qa4 {[%clk 0:02:08]} 30. Qc3 {[%clk 0:00:37]}  Qd7 {[%clk 0:01:55]} 31. Qa5 {[%clk 0:00:37]}  Rc8 {[%clk 0:01:21]} 32. Rxc8+ {[%clk 0:00:15]}  Qxc8 {[%clk 0:01:20]} 33. Qxa6 {[%clk 0:00:09]}  Rxg2 {[%clk 0:01:16]} 34. Ba5 {[%clk 0:00:09]}  Qc2+ {[%clk 0:01:14]} 35. Ka2 {[%clk 0:00:09]}  Qxb3+ {[%clk 0:01:14]} 36. Kxb3 {[%clk 0:00:08]}  bxa6 {[%clk 0:01:15]} 0-1


[Site "https://www.chess.com"]

[Event "Titled Tuesday Blitz July 18 Early 2023"]
[White "Bazilius, Augustinas"]
[Black "Petrosian, Karlen"]
[WhiteFideId "12832251"]
[BlackFideId "4176146"]
[WhiteElo "2440"]
[BlackElo "2617"]
[Result "1/2-1/2"]
[Round "11"]
[TimeControl "180+2"]
[Date "2023.07.18"]
[WhiteClock "0:01:40"]
[BlackClock "0:01:01"]
[Board "53"]

1. e4 {[%clk 0:02:59]}  e6 {[%clk 0:02:58]} 2. d4 {[%clk 0:02:54]}  d5 {[%clk 0:02:58]} 3. exd5 {[%clk 0:02:55]}  exd5 {[%clk 0:02:58]} 4. Bd3 {[%clk 0:02:56]}  Nc6 {[%clk 0:02:58]} 5. c3 {[%clk 0:02:51]}  Bd6 {[%clk 0:02:58]} 6. Ne2 {[%clk 0:02:52]}  Nge7 {[%clk 0:02:58]} 7. O-O {[%clk 0:02:49]}  Bf5 {[%clk 0:02:58]} 8. Bf4 {[%clk 0:02:46]}  O-O {[%clk 0:02:47]} 9. Qc2 {[%clk 0:02:47]}  Bxd3 {[%clk 0:02:46]} 10. Qxd3 {[%clk 0:02:47]}  Ng6 {[%clk 0:02:46]} 11. Bxd6 {[%clk 0:02:43]}  Qxd6 {[%clk 0:02:47]} 12. Nd2 {[%clk 0:02:38]}  Nd8 {[%clk 0:02:36]} 13. f4 {[%clk 0:02:37]}  f5 {[%clk 0:02:26]} 14. Nf3 {[%clk 0:02:35]}  Nxf4 {[%clk 0:02:18]} 15. Nxf4 {[%clk 0:02:26]}  Qxf4 {[%clk 0:02:19]} 16. Ne5 {[%clk 0:02:26]}  Qe4 {[%clk 0:02:16]} 17. Qg3 {[%clk 0:02:20]}  f4 {[%clk 0:02:07]} 18. Qg4 {[%clk 0:02:19]}  Qf5 {[%clk 0:02:07]} 19. Qxf5 {[%clk 0:02:11]}  Rxf5 {[%clk 0:02:07]} 20. Nd3 {[%clk 0:02:11]}  Ne6 {[%clk 0:02:05]} 21. Rae1 {[%clk 0:02:09]}  Rf6 {[%clk 0:02:01]} 22. Re5 {[%clk 0:02:06]}  c6 {[%clk 0:02:00]} 23. Rfe1 {[%clk 0:02:00]}  Kf7 {[%clk 0:01:43]} 24. R5e2 {[%clk 0:01:56]}  g5 {[%clk 0:01:14]} 25. Ne5+ {[%clk 0:01:54]}  Ke7 {[%clk 0:01:14]} 26. Ng4 {[%clk 0:01:53]}  Rg6 {[%clk 0:01:11]} 27. Ne5 {[%clk 0:01:53]}  Rf6 {[%clk 0:01:01]} 28. Ng4 {[%clk 0:01:53]}  Rg6 {[%clk 0:01:01]} 29. Ne5 {[%clk 0:01:40]}  Rf6 {[%clk 0:01:01]} 1/2-1/2


[Site "https://www.chess.com"]

[Event "Titled Tuesday Blitz July 18 Early 2023"]
[White "Panesar Vedant"]
[Black "Vivas Zamora, Fabian Ernesto"]
[WhiteFideId "35033018"]
[BlackFideId "3902480"]
[WhiteElo "2707"]
[BlackElo "2451"]
[Result "1-0"]
[Round "11"]
[TimeControl "180+2"]
[Date "2023.07.18"]
[WhiteClock "0:01:13"]
[BlackClock "0:00:00"]
[Board "54"]

1. d4 {[%clk 0:03:00]}  Nf6 {[%clk 0:02:37]} 2. Nf3 {[%clk 0:02:59]}  g6 {[%clk 0:02:37]} 3. c4 {[%clk 0:02:58]}  Bg7 {[%clk 0:02:37]} 4. g3 {[%clk 0:02:58]}  c6 {[%clk 0:02:37]} 5. Bg2 {[%clk 0:02:59]}  d5 {[%clk 0:02:37]} 6. O-O {[%clk 0:02:54]}  O-O {[%clk 0:02:36]} 7. Ne5 {[%clk 0:02:52]}  Ng4 {[%clk 0:02:23]} 8. Bf4 {[%clk 0:02:42]}  dxc4 {[%clk 0:02:17]} 9. e3 {[%clk 0:02:31]}  Nxe5 {[%clk 0:02:16]} 10. Bxe5 {[%clk 0:02:32]}  Bxe5 {[%clk 0:02:14]} 11. dxe5 {[%clk 0:02:33]}  Qxd1 {[%clk 0:01:45]} 12. Rxd1 {[%clk 0:02:31]}  Be6 {[%clk 0:01:38]} 13. Na3 {[%clk 0:02:30]}  Nd7 {[%clk 0:01:37]} 14. Nxc4 {[%clk 0:02:30]}  Rfd8 {[%clk 0:01:07]} 15. Na5 {[%clk 0:02:26]}  Nxe5 {[%clk 0:00:59]} 16. Nxb7 {[%clk 0:02:20]}  Rxd1+ {[%clk 0:00:46]} 17. Rxd1 {[%clk 0:02:21]}  Rb8 {[%clk 0:00:47]} 18. Nc5 {[%clk 0:02:14]}  Bxa2 {[%clk 0:00:32]} 19. b3 {[%clk 0:02:07]}  a5 {[%clk 0:00:20]} 20. f4 {[%clk 0:01:55]}  Ng4 {[%clk 0:00:14]} 21. Ra1 {[%clk 0:01:53]}  Bxb3 {[%clk 0:00:12]} 22. Rb1 {[%clk 0:01:53]}  a4 {[%clk 0:00:09]} 23. Nxa4 {[%clk 0:01:50]}  Nxe3 {[%clk 0:00:06]} 24. Nc5 {[%clk 0:01:49]}  Nxg2 {[%clk 0:00:05]} 25. Nxb3 {[%clk 0:01:35]}  Ne3 {[%clk 0:00:05]} 26. Kf2 {[%clk 0:01:34]}  Nf5 {[%clk 0:00:06]} 27. g4 {[%clk 0:01:30]}  Nd4 {[%clk 0:00:06]} 28. Nd2 {[%clk 0:01:31]}  Rxb1 {[%clk 0:00:06]} 29. Nxb1 {[%clk 0:01:31]}  f6 {[%clk 0:00:05]} 30. Ke3 {[%clk 0:01:30]}  Nb5 {[%clk 0:00:04]} 31. Nd2 {[%clk 0:01:30]}  Kf7 {[%clk 0:00:05]} 32. Ne4 {[%clk 0:01:31]}  Nd6 {[%clk 0:00:05]} 33. Nc5 {[%clk 0:01:31]}  h5 {[%clk 0:00:05]} 34. h3 {[%clk 0:01:31]}  h4 {[%clk 0:00:04]} 35. Kd4 {[%clk 0:01:30]}  g5 {[%clk 0:00:05]} 36. f5 {[%clk 0:01:30]}  Ne8 {[%clk 0:00:04]} 37. Ne6 {[%clk 0:01:29]}  Ng7 {[%clk 0:00:04]} 38. Nd8+ {[%clk 0:01:29]}  Ke8 {[%clk 0:00:04]} 39. Nxc6 {[%clk 0:01:30]}  Kd7 {[%clk 0:00:04]} 40. Kd5 {[%clk 0:01:27]}  e6+ {[%clk 0:00:02]} 41. fxe6+ {[%clk 0:01:27]}  Nxe6 {[%clk 0:00:03]} 42. Nb8+ {[%clk 0:01:28]}  Ke7 {[%clk 0:00:03]} 43. Nc6+ {[%clk 0:01:29]}  Kf7 {[%clk 0:00:04]} 44. Ke4 {[%clk 0:01:26]}  Nf4 {[%clk 0:00:04]} 45. Kf5 {[%clk 0:01:20]}  Nxh3 {[%clk 0:00:04]} 46. Nd8+ {[%clk 0:01:21]}  Ke7 {[%clk 0:00:03]} 47. Nc6+ {[%clk 0:01:21]}  Kd6 {[%clk 0:00:03]} 48. Nd4 {[%clk 0:01:20]}  Nf2 {[%clk 0:00:03]} 49. Kxf6 {[%clk 0:01:19]}  h3 {[%clk 0:00:02]} 50. Nf3 {[%clk 0:01:17]}  Ne4+ {[%clk 0:00:01]} 51. Kf5 {[%clk 0:01:16]}  Kd5 {[%clk 0:00:02]} 52. Nh2 {[%clk 0:01:15]}  Kd4 {[%clk 0:00:02]} 53. Nf1 {[%clk 0:01:14]}  Kd3 {[%clk 0:00:02]} 54. Ke5 {[%clk 0:01:14]}  Ke2 {[%clk 0:00:02]} 55. Nh2 {[%clk 0:01:14]}  Ke3 {[%clk 0:00:00]} 56. Kf5 {[%clk 0:01:13]} 1-0


[Site "https://www.chess.com"]